Cogmind - Beta 14 @@@ ROGUE MODE // 2024.11.15 @ 10:38:21 Player: Fangrelle Result: Core destroyed Performance ------------- Evolutions (2) 1000 Regions Visited (7) 1400 Robots Destroyed (78) 390 Value Destroyed (1700) 1700 Prototype IDs (30) 600 Alien Tech Used (0) 0 Bonus (120) 120 TOTAL SCORE: 5210 Bonus ------- Aligned with FarCom 300 Friendly Fire -180 Cogmind --------- Core Integrity 0/550 Matter 189/300 Energy 84/100 System Corruption 1% Temperature Critical (575) Movement Core (3550) Ox70 Location -8/Recycling Parts ------- > --- POWER (1) -------- (None) > --- PROPULSION (4) --- (None) > --- UTILITY (3) ------ Humpback Improved Light Armor Plating > --- WEAPON (3) ------- Enhanced Autogun Flak Cannon > --- INVENTORY (35) --- Aerolev Unit Flying Fortress v7 Improved Heat Sink High-capacity Storage Unit Huge Storage Unit Humpback Humpback High-capacity Battery (250) Signal Interpreter Shield Generator Hacking Suite System Shield Mini Grenade Launcher Improved Datajack Mining Laser Makeshift Axe Peak State ------------ > --- POWER ------------ Light Deuterium Engine > --- PROPULSION ------- Light Treads Light Treads Light Treads Improved Treads > --- UTILITY ---------- Humpback System Shield > --- WEAPON ----------- Enhanced Autogun Enhanced Autogun Enhanced Autogun > --- INVENTORY -------- Light Deuterium Engine Aerolev Unit Flying Fortress v7 Improved Heat Sink High-capacity Storage Unit Huge Storage Unit Humpback Humpback Humpback High-capacity Battery High-capacity Matter Pod High-capacity Matter Pod Signal Interpreter Targeting Computer Light Armor Plating Light Armor Plating Improved Light Armor Plating Shield Generator Shield Generator Hacking Suite Hacking Suite Enhanced Autogun Flak Cannon Flak Cannon Mini Grenade Launcher Mini Grenade Launcher Datajack Mining Laser Makeshift Axe [Rating: 34] Favorites ----------- Power Ion Engine Engine Ion Engine Propulsion Light Treads Treads Light Treads Leg Aluminum Leg Wheel Compact Wheel Hover Unit Aerolev Unit Utility Humpback Device Improved Heat Sink Storage Humpback Hackware System Shield Protection Backup Plating I Weapon Enhanced Autogun Energy Gun EM Pulse Gun Energy Cannon Beam Cannon Ballistic Gun Enhanced Autogun Ballistic Cannon Light Cannon Launcher Rocket Launcher Slashing Weapon Makeshift Axe Special Melee Weapon Improved Datajack Build | -11 -10 -10 -10 -9 -8 -8 -8 ------- Run | Yrd Mat Min Exi Min Mat Sto Rec Slots Evolved 4 | . . . . . 4 . . Power . | . . . . . . . . Propulsion 2 | . . . . . 2 . . Utility 1 | . . . . . 1 . . Weapon 1 | . . . . . 1 . . Parts Attached 75 | 2 11 . 4 2 9 36 11 Power 5 | . 3 . . . 1 1 . Engine 5 | . 3 . . . 1 1 . Core . | . . . . . . . . Reactor . | . . . . . . . . Propulsion 19 | 2 2 . 1 . 4 9 1 Treads 16 | . 2 . 1 . 3 9 1 Leg . | . . . . . . . . Wheel 2 | 2 . . . . . . . Hover 1 | . . . . . 1 . . Flight . | . . . . . . . . Utility 9 | . 1 . 2 . 1 1 4 Device 1 | . . . . . . . 1 Storage 4 | . 1 . 1 . . . 2 Processor . | . . . . . . . . Hackware 1 | . . . . . . 1 . Protection 3 | . . . 1 . 1 . 1 Artifact . | . . . . . . . . Weapon 42 | . 5 . 1 2 3 25 6 Energy Gun 3 | . 1 . . . . 2 . Energy Cannon 12 | . 2 . . . 2 8 . Ballistic Gun 13 | . . . . 1 1 9 2 Ballistic Cannon 3 | . 1 . . . . . 2 Launcher 6 | . 1 . . 1 . 4 . Special Weapon . | . . . . . . . . Impact Weapon . | . . . . . . . . Slashing Weapon 3 | . . . 1 . . 1 1 Piercing Weapon . | . . . . . . . . Special Melee Weapon 2 | . . . . . . 1 1 Unidentified Prototypes 7 | . . . . . 1 6 . Parts Lost 13 | . 2 . . 1 . . 10 Power 2 | . 1 . . . . . 1 Propulsion 5 | . . . . . . . 5 Utility 2 | . . . . . . . 2 Weapon 4 | . 1 . . 1 . . 2 Highest Loss Streak 10 | . 1 . . 1 . . 10 To Critical Strikes . | . . . . . . . . Average Slot Usage (%) 90 | . 96 100 89 85 89 89 89 Engine 11 | . 13 14 14 14 9 9 8 Treads 30 | . 16 28 28 28 35 35 35 Wheel 1 | . 11 . . . . . . Storage 11 | . 14 14 13 14 9 9 9 Hackware 3 | . . . . . . 8 8 Protection 3 | . 11 14 4 . 9 . . Energy Cannon 7 | . 12 14 14 3 7 5 . Ballistic Gun 8 | . . . . . 10 20 24 Ballistic Cannon 2 | . 11 14 2 . . . . Launcher 2 | . . . . 10 . . . Slashing Weapon 5 | . . . 11 14 9 . . Peak Build Rating 34 | 6 10 10 18 18 29 34 34 Average Rating 21 | 5 8 10 15 17 25 32 33 On Entrance 16 | 6 6 10 10 18 18 26 34 Naked Turns . | . . . . . . . . Heaviest Build 294 | 11 92 92 211 212 219 223 294 Greatest Support 83 | 32 40 40 40 40 80 83 83 Greatest Overweight (x) 7 | . 2 2 5 5 3 3 7 Average Overweight (x) 2 | . 1 2 3 5 2 2 2 Largest Inventory Capacity 35 | 8 25 25 35 35 35 35 35 Average Capacity 32 | 8 22 25 31 35 35 35 34 Most Carried 35 | 6 21 25 34 35 35 35 35 Average Carried 30 | 4 13 24 25 34 33 34 34 Final Capacity 35 | 8 25 25 35 35 35 35 35 Final Carried 35 | 4 21 25 34 34 35 34 21 Class Distribution -------------------- 41% | Hauler-Mutant 31% | Hauler-Skirmisher 24% | Mutant Dominant Class ---------------- Mutant | -10/Materials Mutant | -10/Mines Hauler-Mutant | -10/Exiles Hauler-Mutant | -9/Mines Hauler-Mutant | -8/Materials Hauler-Skirmisher | -8/Storage Hauler-Skirmisher | -8/Recycling Resources | -11 -10 -10 -10 -9 -8 -8 -8 ----------- Run | Yrd Mat Min Exi Min Mat Sto Rec Matter Collected 1900 | 220 289 24 120 76 67 834 270 Remotely . | . . . . . . . . Salvage Created 2483 | 91 737 41 . 283 204 1044 83 Parts 181 | 1 62 4 . 28 10 68 8 Haulers Intercepted 9 | . 2 . . . 2 5 . Recyclers Shooed 1 | . 1 . . . . . . Parts Field Recycled . | . . . . . . . . Retrieved Matter . | . . . . . . . . Parts Self-Destructed . | . . . . . . . . Prevented . | . . . . . . . . Kills | -11 -10 -10 -10 -9 -8 -8 -8 ------- Run | Yrd Mat Min Exi Min Mat Sto Rec Combat Hostiles Destroyed 45 | . 14 3 . 11 1 15 1 Melee 3 | . . . . 3 . . . Guns 6 | . 2 . . . . 3 1 Cannons 26 | . 10 3 . 1 1 11 . AOE 10 | . 2 . . 7 . 1 . Classes Destroyed 10 | 1 7 . . . 1 1 . Worker 4 | . 2 . . 2 . . . Builder 6 | . 1 . . 1 . 3 1 Hauler 9 | . 2 . . . 2 5 . Recycler 3 | 1 1 . . 1 . . . Operator 5 | . 2 . . . 1 2 . Watcher 6 | . 3 . . . 1 2 . Swarmer 17 | . 3 3 . 8 . 3 . Grunt 19 | . 11 . . 3 . 5 . Duelist 1 | . . . . . . 1 . Sentry 8 | . . . . . 1 6 1 Best Kill Streak 6 | 1 5 3 . 6 1 5 1 Combat Bots Only 5 | . 5 3 . 4 1 3 1 Max Kills in Single Turn 4 | 1 2 1 . 4 1 3 1 Gunslinging . | . . . . . . . . Exploded 4 | . 1 . . 4 . 1 . Melee 1 | . . . . 1 . . . Uniques/NPCs Destroyed . | . . . . . . . . Combat | -11 -10 -10 -10 -9 -8 -8 -8 -------- Run | Yrd Mat Min Exi Min Mat Sto Rec Hostile Shots Fired 386 | . 51 8 . 73 4 73 177 Missed 85 | . 19 3 . 21 3 25 14 Damage Taken 4362 | . 476 40 . 546 77 779 2444 Core 787 | . 84 . . 96 59 126 422 Absorbed by Shields . | . . . . . . . . Regen/Repaired (Parts) 38 | . . . . . . 38 . Core Remaining (%) 64 | 100 . . . 28 . . . Volleys Fired 177 | 3 55 6 . 12 11 66 24 Largest 3 | 2 2 2 . 1 2 3 3 Hottest 180 | 80 125 95 . 60 112 180 75 Shots Fired 406 | 5 109 12 . 12 22 187 59 Gun 174 | 5 19 . . . . 93 57 Cannon 220 | . 88 12 . 6 22 90 2 Launcher 12 | . 2 . . 6 . 4 . Special . | . . . . . . . . Kinetic 198 | . 40 6 . . . 93 59 Thermal 148 | 2 56 6 . 6 . 78 . Explosive 12 | . 2 . . 6 . 4 . Electromagnetic 48 | 3 11 . . . 22 12 . Robot Hit Streak 18 | 2 18 4 . 3 7 10 11 Robot Miss Streak 5 | 2 3 3 . 3 5 5 4 Penetration Max . | . . . . . . . . Secondary Targets . | . . . . . . . . Shots Hit Robots 257 | 3 71 5 . 14 12 89 63 Core Hits 96 | 2 29 3 . 12 3 37 10 Critical Kills . | . . . . . . . . Critical Parts Destroyed 1 | . . . . . . 1 . Critical Strikes 3 | . 2 . . . . 1 . Destroy 1 | . . . . . . 1 . Blast 2 | . 2 . . . . . . Melee Attacks 55 | . . . . 11 . 24 20 Impact . | . . . . . . . . Slashing 35 | . . . . 11 . 24 . Piercing . | . . . . . . . . Sneak Attacks 21 | . . . . 1 . . 20 Combat Hostiles 6 | . . . . . . . 6 Follow-up Attacks . | . . . . . . . . Damage Inflicted 5780 | 38 1403 106 . 1090 286 2249 608 Guns 1572 | 38 226 . . . . 740 568 Cannons 2681 | . 1009 101 . 56 286 1189 40 Explosions 1112 | . 168 . . 650 . 294 . Melee 384 | . . . . 384 . . . Ramming 31 | . . 5 . . . 26 . Kinetic 1815 | . 403 64 . . . 740 608 Thermal 1891 | 11 691 37 . 56 . 1096 . Explosive 1112 | . 168 . . 650 . 294 . Electromagnetic 547 | 27 141 . . . 286 93 . Impact . | . . . . . . . . Slashing 384 | . . . . 384 . . . Piercing . | . . . . . . . . Highest Corruption 1 | . . . . . . 1 1 Average Corruption 1 | . . . . . . 1 1 Corruption Purged . | . . . . . . . . Corruption Blocked . | . . . . . . . . Effects 25 | . . . . . . 12 13 Message Errors 3 | . . . . . . 1 2 Matter Fused 10 | . . . . . . 6 4 Heat Flow Errors 2 | . . . . . . 1 1 Energy Discharges 4 | . . . . . . 2 2 Data Loss (minor) 3 | . . . . . . 1 2 Data Loss (major) 1 | . . . . . . 1 . Misfires 1 | . . . . . . . 1 Alerts 1 | . . . . . . . 1 Overload Shots . | . . . . . . . . Overflow Damage 239 | . 12 . . 151 24 50 2 Projectiles 83 | . 7 . . . 24 50 2 Explosions 33 | . 5 . . 28 . . . Melee 123 | . . . . 123 . . . Knockbacks 10 | . 7 . . . . 2 1 Impact 2 | . . . . . . 2 . Kinetic 7 | . 6 . . . . . 1 Secondary 1 | . 1 . . . . . . Self-Inflicted Damage 48 | . . . . 33 . 15 . Shots 2 | . . . . 1 . 1 . Rammed 4 | . . 2 . . . 2 . Targets Rammed 4 | . . 2 . . . 2 . Kicked . | . . . . . . . . Crushed . | . . . . . . . . Highest Temperature 575 | 36 282 108 . 100 102 477 575 Average Temperature 117 | 23 84 46 . 45 47 122 293 Received Heat Transfer 1981 | . 195 . . 144 . 243 1399 Effects 20 | . . . . . . 4 16 Shutdowns 4 | . . . . . . 3 1 Energy Bleed 2 | . . . . . . 1 1 Interference 4 | . . . . . . . 4 Matter Decay 4 | . . . . . . . 4 Short Circuit 3 | . . . . . . . 3 Damage (minor) 2 | . . . . . . . 2 Damage (core) 1 | . . . . . . . 1 Siege Activations . | . . . . . . . . Robots Corrupted 1 | . . . . . 1 . . Combat Hostiles . | . . . . . . . . Parts Fried 3 | . 1 . . . 1 1 . Impact Corruptions . | . . . . . . . . Robots Melted . | . . . . . . . . Combat Hostiles . | . . . . . . . . Parts Melted 3 | . . . . . . 3 . Heat Transferred 3418 | 25 1469 74 . 111 . 1739 . Parts Sabotaged . | . . . . . . . . Parts Stolen . | . . . . . . . . Parts Stripped . | . . . . . . . . Power Chain Reactions . | . . . . . . . . Alert | -11 -10 -10 -10 -9 -8 -8 -8 ------- Run | Yrd Mat Min Exi Min Mat Sto Rec Peak Influence 353 | 5 353 85 . 109 86 203 212 Initial 61 | . 3 31 . . 42 35 61 Average 68 | 3 157 20 . 20 39 114 49 Maximum Alert Level 1 | . 1 . . . . 1 1 Low Security (%) 95 | 100 62 100 . 100 100 99 95 Level 1 4 | . 37 . . . . . 4 Level 2 . | . . . . . . . . Level 3 . | . . . . . . . . Level 4 . | . . . . . . . . Level 5 . | . . . . . . . . High Security . | . . . . . . . . Max Security . | . . . . . . . . Squads Dispatched 10 | . 4 . . . . 6 . Investigation 5 | . 2 . . . . 3 . Extermination . | . . . . . . . . Reinforcement 4 | . 2 . . . . 2 . Assault . | . . . . . . . . Garrison 1 | . . . . . . 1 . Intercept . | . . . . . . . . Searches Triggered . | . . . . . . . . Construction Impeded . | . . . . . . . . Haulers Reinforced . | . . . . . . . . Active Scanning Responses . | . . . . . . . . Cargo Convoy Interrupts . | . . . . . . . . Stealth | -11 -10 -10 -10 -9 -8 -8 -8 --------- Run | Yrd Mat Min Exi Min Mat Sto Rec Distress Signals 1 | . . . . . . 1 . Communications Jammed . | . . . . . . . . Distress Signals . | . . . . . . . . Times Spotted 114 | . 26 4 . 14 3 33 34 Peak Tracking Total 6 | . 5 3 . 4 1 4 6 Tactical Retreats 9 | . 2 1 . . . 2 4 Traps | -11 -10 -10 -10 -9 -8 -8 -8 ------- Run | Yrd Mat Min Exi Min Mat Sto Rec Traps Triggered 6 | . 3 . . . . 3 . Indirectly . | . . . . . . . . Trap Hack Attempts 21 | . . . . . . 21 . Triggered . | . . . . . . . . Disarmed . | . . . . . . . . Reprogrammed 2 | . . . . . . 2 . Reused . | . . . . . . . . Traps Extracted . | . . . . . . . . Installed . | . . . . . . . . Triggered . | . . . . . . . . Machines | -11 -10 -10 -10 -9 -8 -8 -8 ---------- Run | Yrd Mat Min Exi Min Mat Sto Rec Machines Disabled 10 | . 3 . . . . 6 1 Max in Single Turn 1 | . 1 . . . . 1 1 Garrison Access 1 | . . . . . . 1 . Machines Repaired . | . . . . . . . . Machines Dismantled . | . . . . . . . . Machines Sabotaged . | . . . . . . . . Overloaded Fab Kills . | . . . . . . . . Hacking | -11 -10 -10 -10 -9 -8 -8 -8 --------- Run | Yrd Mat Min Exi Min Mat Sto Rec Machines Accessed 42 | . 9 1 2 . 3 12 15 Terminals 24 | . 6 1 . . 3 8 6 Fabricators . | . . . . . . . . Repair Stations 2 | . 1 . . . . 1 . Recycling Units 13 | . 2 . . . . 2 9 Scanalyzers . | . . . . . . . . Garrison Access 1 | . . . . . . 1 . Total Hacks 156 | . 36 2 8 . 10 40 60 Successful 98 | . 20 1 8 . 7 25 37 Failed 58 | . 16 1 . . 3 15 23 Catastrophic 3 | . . 1 . . . 1 1 Database Lockouts . | . . . . . . . . Manual 101 | . 29 2 1 . 10 25 34 Terminals 88 | . 23 2 . . 10 28 25 Fabricators . | . . . . . . . . Repair Stations 8 | . 4 . . . . 4 . Recycling Units 51 | . 9 . . . . 7 35 Scanalyzers . | . . . . . . . . Garrison Access 1 | . . . . . . 1 . Terminal Hacks 17 | . 5 1 8 . . 2 1 Record 7 | . . . 7 . . . . Robot Schematic 1 | . 1 . . . . . . Robot Analysis 6 | . 4 . . . . 1 1 Open Door 1 | . . . . . . 1 . Zone Layout 1 | . . 1 . . . . . Derelict Proto ID Bank 1 | . . . 1 . . . . Fabricator Hacks . | . . . . . . . . Repair Station Hacks 5 | . 1 . . . . 4 . Scan Component 2 | . . . . . . 2 . Repair 2 | . . . . . . 2 . Refit 1 | . 1 . . . . . . Recycling Unit Hacks 21 | . 3 . . . . 3 15 Report Inventory 12 | . 2 . . . . 2 8 Retrieve Components 9 | . 1 . . . . 1 7 Scanalyzer . | . . . . . . . . Garrison Access Hacks 1 | . . . . . . 1 . Seal Access 1 | . . . . . . 1 . Unauthorized Hacks 54 | . 11 . . . 7 15 21 Terminals 42 | . 10 . . . 7 13 12 Assimilate 11 | . 3 . . . 2 4 2 Botnet 19 | . 6 . . . 3 5 5 Operators 6 | . 1 . . . 2 1 2 Skim 6 | . . . . . . 3 3 Fabricators . | . . . . . . . . Repair Stations . | . . . . . . . . Recycling Units 12 | . 1 . . . . 2 9 Tunnel 12 | . 1 . . . . 2 9 Scanalyzers . | . . . . . . . . Garrison Access . | . . . . . . . . Data Cores Recovered 1 | . . . . . 1 . . Used . | . . . . . . . . Hacking Detections 30 | . 9 1 . . 3 9 8 Full Trace Events 4 | . 3 . . . . 1 . Feedback Events . | . . . . . . . . Feedback Blocked . | . . . . . . . . Robot Schematics Acquired 1 | . 1 . . . . . . Robots Built . | . . . . . . . . Authchips . | . . . . . . . . Time . | . . . . . . . . Total Robot Build Rating . | . . . . . . . . Part Schematics Acquired . | . . . . . . . . Parts Built . | . . . . . . . . Authchips . | . . . . . . . . Time . | . . . . . . . . Total Part Build Rating . | . . . . . . . . Parts Repaired 2 | . . . . . . 2 . Time 97 | . . . . . . 97 . Parts Recycled . | . . . . . . . . Recycled Matter . | . . . . . . . . Retrieved Matter . | . . . . . . . . Retrieved Components 40 | . 7 . . . . 10 23 Parts Scanalyzed . | . . . . . . . . Part Schematics Acquired . | . . . . . . . . Parts Damaged . | . . . . . . . . Bothacking | -11 -10 -10 -10 -9 -8 -8 -8 ------------ Run | Yrd Mat Min Exi Min Mat Sto Rec Used RIF Installer . | . . . . . . . . Robots Hacked . | . . . . . . . . Non-combat . | . . . . . . . . Combat . | . . . . . . . . Robot Hacks Applied . | . . . . . . . . Relay Couplers Released . | . . . . . . . . Fabnet Peak Effective % . | . . . . . . . . Robots Rewired 9 | . . . . . . . 9 Allies Hacked . | . . . . . . . . Hacks Repelled . | . . . . . . . . Allies | -11 -10 -10 -10 -9 -8 -8 -8 -------- Run | Yrd Mat Min Exi Min Mat Sto Rec Total Allies 9 | . . . . . . . 9 Largest Group 9 | . . . . . . . 9 Highest-Rated Group 98 | . . . . . . . 98 Highest-Rated Ally 18 | . . . . . . . 18 Total Orders . | . . . . . . . . Ally Attacks . | . . . . . . . . Total Damage . | . . . . . . . . Kills . | . . . . . . . . Allies Corrupted . | . . . . . . . . Allies Melted . | . . . . . . . . Intel | -11 -10 -10 -10 -9 -8 -8 -8 ------- Run | Yrd Mat Min Exi Min Mat Sto Rec Robot Analysis Total 5 | . 4 . . . . . 1 Derelict Logs Recovered 3 | . . 1 . 2 . . . Drone Launches . | . . . . . . . . Drone Recoveries . | . . . . . . . . Exploration | -11 -10 -10 -10 -9 -8 -8 -8 ------------- Run | Yrd Mat Min Exi Min Mat Sto Rec Turns Passed 17995 | 13 1617 1924 2510 4358 700 4867 2006 Spaces Moved 4761 | 3 692 586 564 766 201 1357 592 Core . | . . . . . . . . Treads 4332 | . 266 586 564 766 201 1357 592 Legs . | . . . . . . . . Wheels 429 | 3 426 . . . . . . Hover . | . . . . . . . . Flight . | . . . . . . . . Fastest Speed 100 | 100 100 320 160 560 320 320 320 Average Speed 354 | 100 196 320 437 560 320 320 320 Slowest Speed 720 | 100 320 320 560 560 400 400 720 Overloaded Moves . | . . . . . . . . Propulsion Burnouts . | . . . . . . . . Robots Hopped . | . . . . . . . . Cave-ins Triggered . | . . . . . . . . Exploration Rate (%) 72 | 2 97 99 71 103 16 97 97 Regions Visited 7 Branch Regions 5 Pre-discovered Areas 13 | . 1 . 1 . . 2 9 Known Exits Taken 1 | . . . . . 1 . . Unknown Exits Taken 6 | 1 1 1 1 1 . 1 . Scrap Searched 2 | . . 1 . 1 . . . Spaces Dug 2 | . . . . . . 2 . Terrain Destroyed 96 | . 9 . . 47 . 40 . Melee 2 | . . . . . . 2 . Projectile 8 | . . . . . . 8 . AOE 86 | . 9 . . 47 . 30 . Terrain Rammed . | . . . . . . . . Walls Destroyed . | . . . . . . . . Machines Disabled . | . . . . . . . . Actions | -11 -10 -10 -10 -9 -8 -8 -8 --------- Run | Yrd Mat Min Exi Min Mat Sto Rec Total 5581 | 9 843 623 619 818 239 1751 679 Wait 299 | . 56 16 . 22 . 194 11 Move 4754 | 2 691 585 563 765 200 1356 592 Hop . | . . . . . . . . Pick Up 96 | . 22 9 33 3 10 14 5 Fast Attach 18 | . 4 . 1 . 2 11 . Attach 19 | 2 1 . . 2 4 4 6 Detach 9 | . 1 . . 1 1 5 1 Swap 38 | . 6 . 3 . 3 21 5 Drop 79 | 2 7 5 19 2 8 31 5 Fire 177 | 3 55 6 . 12 11 66 24 Melee 55 | . . . . 11 . 24 20 Ram . | . . . . . . . . Kick . | . . . . . . . . Crush 4 | . . 2 . . . 2 . Escape Stasis 2 | . . . . . . 2 . Rewire 10 | . . . . . . . 10 Trap 21 | . . . . . . 21 . Miscellaneous . | . . . . . . . . Route ------- -11/Scrapyard -10/Materials (discovered 4 exits: [*Mat x3] / *Min) -10/Mines (discovered 4 exits: [*Mat x2] / *Exi / Sub) -10/Exiles -9/Mines (discovered 2 exits: *Mat x2) -8/Materials -8/Storage (discovered 2 exits: [*Fac] / *Rec) -8/Recycling (discovered 1 exit: [*Fac]) History --------- Turn | Location | Event 7 | -11/Scrapyard | Discovered new exit (range 3) 14 | -11/Scrapyard | Entered Materials 292 | -10/Materials | Discovered new exit (range 5) 305 | -10/Materials | Build established: Mutant 487 | -10/Materials | Discovered new exit (range 9) 848 | -10/Materials | Discovered new exit (range 14) 1340 | -10/Materials | Discovered new exit (range 10) 1631 | -10/Materials | Entered Mines 1631 | -10/Mines | Joined a pair of Derelicts in attacking an 0b10 outpost 1787 | -10/Mines | A weapon hastily lodged in a ceiling crevice suddenly fell to the ground 1914 | -10/Mines | Discovered new exit (range 12) 1955 | -10/Mines | Identified exit to Subcaves 2262 | -10/Mines | Discovered new exit (range 9) 3210 | -10/Mines | Deemed a non-threat by the Exiles lab entrance 3210 | -10/Mines | Discovered new exit (range 5) 3555 | -10/Mines | Entered Exiles 3640 | -10/Exiles | Met 8R-AWN 3751 | -10/Exiles | Met EX-HEX 3850 | -10/Exiles | Met EX-BIN 3888 | -10/Exiles | Aligned with FarCom system 3892 | -10/Exiles | Given EX-Vault access code 3965 | -10/Exiles | Opened EX-Vault 3996 | -10/Exiles | Found Flying Fortress v7 4064 | -10/Exiles | Warned to stay clear of 0b10 Research branches 4170 | -10/Exiles | Met EX-DEC 4186 | -10/Exiles | Learned location of Zion (-6) 4691 | -10/Exiles | Build established: Hauler-Mutant 5721 | -10/Exiles | Discovered new exit (range 11) 6065 | -10/Exiles | Left Exiles lab with Flying Fortress v7 6065 | -10/Exiles | Entered Mines 6465 | -9/Mines | Received a Rocket Launcher from a helpful Derelict 6792 | -9/Mines | Discovered new exit (range 5) 6982 | -9/Mines | Discovered new exit (range 11) 7024 | -9/Mines | Core integrity fell below 50% 8758 | -9/Mines | Learned Materials emergency access door positions 10423 | -9/Mines | Entered Materials 10423 | -8/Materials | Evolved 4 slots: Propulsion x2, Utility x1, Weapon x1 10424 | -8/Materials | Identified exit to Storage 11123 | -8/Materials | Entered Storage 11622 | -8/Storage | Build established: Hauler-Skirmisher 12210 | -8/Storage | Met 01-MTF 12920 | -8/Storage | Repaired Corrupted Hacking Suite 12965 | -8/Storage | Repaired Mak. Axe 13429 | -8/Storage | Discovered new exit (range 5) 13826 | -8/Storage | Discovered new exit (range 5) 14267 | -8/Storage | Garrison activated, responded to threat 15972 | -8/Storage | Build established: Hauler-Mutant 15990 | -8/Storage | Entered Recycling 15990 | -8/Recycling | Accompanied by 1 ally (01-MTF) 16272 | -8/Recycling | Build established: Hauler-Skirmisher 16670 | -8/Recycling | Discovered new exit (range 12) 17698 | -8/Recycling | Build established: Commander-Mutant 17906 | -8/Recycling | Scanned before Scraplab entrance 17941 | -8/Recycling | Angered Scraplab inhabitants 17970 | -8/Recycling | Core integrity fell below 50% 17972 | -8/Recycling | Lost 11 allies 17986 | -8/Recycling | Core integrity fell below 20% 17997 | -8/Recycling | Core destroyed Last Messages --------------- 17991_ Penetrated by Thermabolt. 17991_ Thermabolt penetrates Reinforced Barrier. 17992_ Overheating: Flak Cannon damaged (-22). 17992_ Dropped Hcp. Matter Pod. 17993_ Extracted 200 matter. 17993_ Penetrated by Thermabolt. 17993_ Thermabolt penetrates Reinforced Barrier. 17993_ Penetrated by Thermabolt. 17993_ Thermabolt penetrates Reinforced Barrier. 17993_ Penetrated by Thermabolt. 17993_ Thermabolt penetrates Reinforced Barrier. 17993_ Penetrated by Thermabolt. 17994_ U-05 Engineer knocked back. 17994_ Destroyed Mak. Targeting Computer. 17994_ U-05 Engineer destroyed. 17995_ EZ-6E0(j) cannibalizes Lgt. Ion Engine to repair Lgt. Deuterium Engine. 17995_ Penetrated by Thermabolt. 17995_ Thermabolt penetrates Reinforced Barrier. 17995_ Penetrated by Thermabolt. 17997_ Overheating: Core damaged (-71). Map ----- +----------------------------------------------------+ | | | | | | | | | | | | | | | | | | | | | | | | | | | | | | | | | | | | | | | | | | | ?????????????????????????????????????????????????? | | ??????????????????????##?????????????????????????? | | ??????????????????????# #####?????? ##???????????? | | ??????????????????????#!#]*%# #?????????? | | ?????????????????????##!*@j[c! #?????????? | | ?????????????????????#jh!#[## "??????????? | | ?????????????????????##%#?##??????? "???????????? | | ??????????????????????#!#????????????????????????? | | ??????????????????????#%#????????????????????????? | | ???????????????????####*####?????????????????????? | | ???????????????????# =%[ #?????????????????????? | | ???????????????????# [%* #?????????????????????? | | ???????????????????# =%* #?????????????????????? | | ???????????????????# %% #?????????????????????? | | ???????????????????####/####?????????????????????? | | ????????????????###???# #????????????????????????? | | ??????????????### ##### #####################????? | | ??????????????# + #????? | | ??????????????# ############ #????? | | ??????????????# #???#?##???# #????? | | ??????????????# #??#### #### #????? | | ??????????????# #??# # #############????? | | ??????????????# #??# # #????????????????? | | ??????????????# #??# # ##############???? | | ??????????????# #??# # # /#???? | | ??????????????# #?## # # / #???? | | ??????????????# #?# # / #???? | | ??????#######?# #?## # # != #???? | | ??????# #####+#########/### # % #???? | +----------------------------------------------------+ Best States ------------- Heat Dissipation 45 Energy Generation 14 Energy Capacity 280 Matter Stores 300 Matter Capacity 300 Sight Range 16 Terrain Scan Density 10 Armor Coverage 150 Evasion (%) 40 Recoil Reduction 4 Defensive Hacking 10 Item Schematics ----------------- None Robot Schematics ------------------ G-34 Mercenary | -10/Materials | Hacked Fabricated ------------ Nothing Alien Tech Used ----------------- None Achievements -------------- None Challenges ------------ None Game ------ Seed IonicFireWarhead Manual? 0 Play Time 01:00:54 Cumulative 81.3 hours Start 2024.11.15 @ 09:37:35 End 2024.11.15 @ 10:38:21 Sessions 3 Manual Loads 0 Difficulty Rogue Special Mode None Game No. 140 Rogue 140 Adventurer 0 Explorer 0 Win Type - Total 0 Types 0/0/0/0/0/0/0/0/0 Lore% 41 Gallery% 36 Achievement% 34 Wizard Run 0 Options --------- Layout 0 ASCII 0 Keyboard 0 Movement Mouse Keybinds 0 Fullscreen 1 Font 24/Smallcaps Map View 91x25 Zoom Use 91% Tactical HUD 1 Map Filters NONE Filters NONE Steam 1 RUN: e74793d3-3c5a-40b5-843e-656dabafbe96